fUST/lending_fUST_20260205
["ID","MTS","AMOUNT","RATE_DAILY","PERIOD"]
[404573671,1770305470128,-500.0,0.00059178,120]
[404573672,1770305470138,-2952.51,0.00059178,120]
[404573673,1770305470148,-843.92,0.00059178,120]
[404573674,1770305470158,-1650.61,0.00059178,120]
[404573675,1770305470168,-795.87,0.00059178,120]
[404573676,1770305470177,-709.18,0.00059178,120]
[404573677,1770305470187,-500.0,0.00059178,120]
[404573678,1770305470196,-500.0,0.00059178,120]
[404573679,1770305470206,-500.0,0.00059178,120]
[404573680,1770305470216,-500.0,0.00059178,120]
[404573681,1770305470225,-610.48273823,0.00059178,120]
[404573682,1770305470236,-500.0,0.00059178,120]
[404573683,1770305470246,-500.0,0.00059178,120]
[404573684,1770305470259,-860.2,0.00059178,120]
[404573685,1770305470269,-534.75,0.00059178,120]
[404573686,1770305470279,-500.0,0.00059178,120]
[404573687,1770305470289,-500.0,0.00059178,120]
[404573688,1770305470300,-500.0,0.00059178,120]
[404573689,1770305470311,-500.0,0.00059178,120]
[404573690,1770305470321,-757.11,0.00059178,120]
[404573691,1770305470339,-1211.68,0.00059178,2]
[404573692,1770305470349,-958.98,0.00059178,120]
[404573693,1770305470360,-686.83,0.00059178,120]
[404573694,1770305470370,-636.76759708,0.00059178,120]
[404573695,1770305470380,-500.0,0.00059178,120]
[404573696,1770305470390,-500.0,0.00059178,120]
[404573697,1770305470401,-571.53124556,0.00059178,120]
[404573698,1770305470411,-319.55,0.00059178,120]
[404573699,1770305470421,-500.0,0.00059178,120]
[404573700,1770305470430,-899.28,0.00059178,120]
[404573701,1770305470440,-500.0,0.00059178,120]
[404573702,1770305470450,-500.0,0.00059178,120]
[404573703,1770305470460,-1370.64,0.00059178,120]
[404573704,1770305470469,-500.0,0.00059178,120]
[404573705,1770305470479,-658.98,0.00059178,14]
[404573706,1770305470489,-2352.07,0.00059178,30]
[404573707,1770305470499,-65810.86,0.00059178,14]
[404573708,1770305470509,-1568.85,0.00059178,120]
[404573709,1770305470521,-4399.7,0.00059178,21]
[404573710,1770305470531,-500.0,0.00059178,54]
[404573711,1770305470540,-724.89,0.00059178,120]
[404573712,1770305470550,-1207.7,0.00059178,120]
[404573713,1770305470560,-1537.54,0.00059178,120]
[404573714,1770305470571,-1689.93,0.00059178,120]
[404573715,1770305470587,-547.47,0.00059178,120]
[404573716,1770305470597,-773.92,0.00059178,120]
[404573717,1770305470607,-1484.47,0.00059178,120]
[404573718,1770305470616,-500.0,0.00059178,120]
[404573719,1770305470626,-2746.19,0.00059178,90]
[404573720,1770305470635,-500.0,0.00059178,120]
[404573721,1770305470645,-500.0,0.00059178,120]
[404573722,1770305470655,-506.65174962,0.00059265,56]
[404573723,1770305470664,-500.0,0.00059265,56]
[404573724,1770305470674,-108356.585261,0.00059375,120]
[404573725,1770305470684,-15699.26892,0.00059375,120]
[404573726,1770305470695,-700.0,0.00059384,120]
[404573727,1770305470705,-1000.0,0.00059726,120]
[404573728,1770305470715,-500.0,0.00059726,120]
[404573729,1770305470725,-500.0,0.00059726,120]
[404573730,1770305470734,-500.0,0.00059726,120]
[404573731,1770305470744,-500.0,0.00059726,120]
[404573732,1770305470754,-1007.5,0.00059726,30]
[404573733,1770305470763,-2025.68,0.00059726,120]
[404573734,1770305470773,-739.64,0.00059726,120]
[404573735,1770305470783,-891.32,0.00059726,7]
[404573736,1770305470794,-515.45703989,0.00059726,120]
[404573737,1770305470894,-551.9,0.00059726,120]
[404573738,1770305470904,-754.99,0.00059726,120]
[404573739,1770305470914,-2072.5,0.00059726,120]
[404573740,1770305470924,-7798.25,0.00059726,120]
[404573741,1770305470938,-7798.25,0.00059726,120]
[404573742,1770305470948,-2202.72,0.00059726,120]
[404573743,1770305470957,-500.0,0.00059726,120]
[404573744,1770305470967,-154.26,0.00059726,120]
[404573745,1770305470976,-2952.51,0.00059726,120]
[404573746,1770305470986,-843.92,0.00059726,120]
[404573747,1770305470996,-1650.61,0.00059726,120]
[404573748,1770305471006,-795.87,0.00059726,120]
[404573749,1770305471015,-709.18,0.00059726,120]
[404573750,1770305471025,-500.0,0.00059726,120]
[404573751,1770305471035,-500.0,0.00059726,120]
[404573752,1770305471049,-519.4407474,0.00059726,120]
[404573753,1770305471069,-500.0,0.00059726,120]
[404573754,1770305471093,-500.0,0.00059726,120]
[404573755,1770305471102,-500.0,0.00059726,120]
[404573756,1770305471114,-860.2,0.00059726,120]
[404573757,1770305471123,-534.75,0.00059726,120]
[404573758,1770305471132,-500.29392046,0.00059726,120]
[404573759,1770305471141,-500.0,0.00059726,120]
[404573760,1770305471151,-500.0,0.00059726,120]
[404573761,1770305471161,-500.0,0.00059726,120]
[404573762,1770305471171,-757.11,0.00059726,120]
[404573763,1770305471181,-1211.68,0.00059726,2]
[404573764,1770305471190,-958.98,0.00059726,120]
[404573765,1770305471200,-686.83,0.00059726,120]
[404573766,1770305471210,-504.52451878,0.00059726,120]
[404573767,1770305471220,-500.0,0.00059726,120]
[404573768,1770305471230,-319.55,0.00059726,120]
[404573769,1770305471243,-500.0,0.00059726,120]
[404573770,1770305471253,-899.28,0.00059726,120]
[404573771,1770305471264,-512.19651334,0.00059726,120]
[404573772,1770305471274,-500.0,0.00059726,120]
[404573773,1770305471286,-1370.64,0.00059726,120]
[404573774,1770305471296,-500.0,0.00059726,120]
[404573775,1770305471307,-658.98,0.00059726,14]
[404573776,1770305471319,-2352.07,0.00059726,30]
[404573777,1770305471334,-65810.86,0.00059726,14]
[404573778,1770305471344,-1568.85,0.00059726,120]
[404573779,1770305471354,-4399.7,0.00059726,21]
[404573780,1770305471364,-500.0,0.00059726,54]
[404573781,1770305471374,-724.89,0.00059726,120]
[404573782,1770305471383,-1207.7,0.00059726,120]
[404573783,1770305471392,-1537.54,0.00059726,120]
[404573784,1770305471402,-1689.93,0.00059726,120]
[404573785,1770305471412,-547.47,0.00059726,120]
[404573786,1770305471422,-773.92,0.00059726,120]
[404573787,1770305471431,-1484.47,0.00059726,120]
[404573788,1770305471441,-281.70167322,0.00059726,120]
[404573789,1770305471451,-2746.19,0.00059726,90]
[404573790,1770305471461,-500.0,0.00059726,120]
[404573791,1770305471471,-500.0,0.00059726,120]
[404573792,1770305471481,-4881.2,0.00059804,120]
[404573793,1770305471491,-11389.46,0.00059936,30]
[404573794,1770305471501,-81316.64949654,0.0006,120]
[404573795,1770305471511,-1515.94,0.0006,30]
[404573796,1770305471521,-23563.58308715,0.0006,120]
[404573797,1770305471531,-705.94335388,0.0006,120]
[404573798,1770305471541,-519.26420999,0.0006,120]
[404573799,1770305471551,-65283.31,0.0006,14]
[404573800,1770305471562,-156.0,0.000601,120]
[404573801,1770305471588,-218.62902907,0.00060273,120]
[404573802,1770305471619,-500.0,0.00060273,120]
[404573803,1770305471631,-500.0,0.00060273,120]
[404573804,1770305471642,-500.0,0.00060273,120]
[404573805,1770305471652,-500.0,0.00060273,120]
[404573806,1770305471662,-1007.5,0.00060273,30]
[404573807,1770305471672,-2025.68,0.00060273,120]
[404573808,1770305471683,-739.64,0.00060273,120]
[404573809,1770305471692,-891.32,0.00060273,7]
[404573810,1770305471702,-551.9,0.00060273,120]
[404573811,1770305471713,-754.99,0.00060273,120]
[404573812,1770305471723,-2072.5,0.00060273,120]
[404573813,1770305471733,-7798.25,0.00060273,120]
[404573814,1770305471743,-7798.25,0.00060273,120]
[404573815,1770305471753,-2202.72,0.00060273,120]
[404573816,1770305471763,-500.0,0.00060273,120]
[404573817,1770305471773,-2952.51,0.00060273,120]
[404573818,1770305471782,-843.92,0.00060273,120]
[404573819,1770305471793,-1650.61,0.00060273,120]
[404573820,1770305471803,-795.87,0.00060273,120]
[404573821,1770305471813,-709.18,0.00060273,120]
[404573822,1770305471822,-500.0,0.00060273,120]
[404573823,1770305471838,-500.0,0.00060273,120]
[404573824,1770305471848,-500.0,0.00060273,120]
[404573825,1770305471858,-500.0,0.00060273,120]
[404573826,1770305471868,-500.0,0.00060273,120]
[404573827,1770305471878,-860.2,0.00060273,120]
[404573828,1770305471888,-534.75,0.00060273,120]
[404573829,1770305471898,-500.0,0.00060273,120]
[404573830,1770305471908,-500.0715,0.00060273,120]
[404573831,1770305471918,-500.0,0.00060273,120]
[404573832,1770305471929,-757.11,0.00060273,120]
[404573833,1770305471939,-1211.68,0.00060273,2]
[404573834,1770305471949,-958.98,0.00060273,120]
[404573835,1770305471958,-686.83,0.00060273,120]
[404573836,1770305471967,-500.0,0.00060273,120]
[404573837,1770305471977,-319.55,0.00060273,120]
[404573838,1770305471987,-500.0,0.00060273,120]
[404573839,1770305471997,-899.28,0.00060273,120]
[404573840,1770305472007,-452.00562925,0.00060273,120]
[404573841,1770305472017,-1370.64,0.00060273,120]
[404573842,1770305472026,-500.0,0.00060273,120]
[404573843,1770305472035,-658.98,0.00060273,14]
[404573844,1770305472045,-2352.07,0.00060273,30]
[404573845,1770305472055,-65810.86,0.00060273,14]
[404573846,1770305472065,-1568.85,0.00060273,120]
[404573847,1770305472074,-4399.7,0.00060273,21]
[404573848,1770305472087,-500.0,0.00060273,54]
[404573849,1770305472096,-724.89,0.00060273,120]
[404573850,1770305472106,-1207.7,0.00060273,120]
[404573851,1770305472116,-1537.54,0.00060273,120]
[404573852,1770305472126,-1689.93,0.00060273,120]
[404573853,1770305472135,-547.47,0.00060273,120]
[404573854,1770305472145,-773.92,0.00060273,120]
[404573855,1770305472155,-1484.47,0.00060273,120]
[404573856,1770305472164,-2746.19,0.00060273,90]
[404573857,1770305472175,-500.0,0.00060273,120]
[404573858,1770305472184,-500.0,0.00060273,120]
[404573859,1770305472194,-1372.0,0.000603,120]
[404573860,1770305472203,-631.0,0.000603,120]
[404573861,1770305472213,-420.0,0.000603,2]
[404573862,1770305472223,-420.0,0.000603,120]
[404573863,1770305472233,-719.0,0.000603,2]
[404573864,1770305472247,-179.0,0.000603,120]
[404573865,1770305472256,-154.26,0.0006041,120]
[404573866,1770305472266,-187.86973469,0.000605,120]
[404573867,1770305472276,-234.04175737,0.000605,120]
[404573868,1770305472286,-163.02680883,0.000605,120]
[404573869,1770305472296,-193.36516616,0.000605,120]
[404573870,1770305472306,-216.35767492,0.000605,120]
[404573871,1770305472319,-180.76307223,0.000605,120]
[404573872,1770305472329,-169.1602781,0.000605,120]
[404573873,1770305472342,-181.25296218,0.000605,120]
[404573874,1770305472352,-253.6783917,0.000605,120]
[404573875,1770305472363,-201.2716677,0.000605,120]
[404573876,1770305472374,-239.968,0.000605,120]
[404573877,1770305472384,-184.52113141,0.000605,120]
[404573878,1770305472394,-162.93564151,0.000605,120]
[404573879,1770305472404,-184.3161173,0.000605,120]
[404573880,1770305472414,-168.35181428,0.000605,120]
[404573881,1770305472424,-176.04213432,0.000605,120]
[404573882,1770305472434,-177.91583122,0.000605,120]
[404573883,1770305472444,-500.0,0.00060821,120]
[404573884,1770305472453,-500.0,0.00060821,120]
[404573885,1770305472463,-500.0,0.00060821,120]
[404573886,1770305472473,-500.0,0.00060821,120]
[404573887,1770305472482,-1007.5,0.00060821,30]
[404573888,1770305472492,-2025.68,0.00060821,120]
[404573889,1770305472501,-739.64,0.00060821,120]
[404573890,1770305472511,-891.32,0.00060821,7]
[404573891,1770305472520,-551.9,0.00060821,120]
[404573892,1770305472530,-754.99,0.00060821,120]
[404573893,1770305472540,-2072.5,0.00060821,120]
[404573894,1770305472549,-7798.25,0.00060821,120]
[404573895,1770305472558,-7798.25,0.00060821,120]
[404573896,1770305472567,-2202.72,0.00060821,120]
[404573897,1770305472577,-500.0,0.00060821,120]
[404573898,1770305472592,-2952.51,0.00060821,120]
[404573899,1770305472601,-843.92,0.00060821,120]
[404573900,1770305472610,-1650.61,0.00060821,120]
[404573901,1770305472620,-795.87,0.00060821,120]
[404573902,1770305472629,-709.18,0.00060821,120]
[404573903,1770305472640,-500.0,0.00060821,120]
[404573904,1770305472649,-500.0,0.00060821,120]
[404573905,1770305472659,-500.0,0.00060821,120]
[404573906,1770305472670,-500.0,0.00060821,120]
[404573907,1770305472679,-860.2,0.00060821,120]
[404573908,1770305472689,-534.75,0.00060821,120]
[404573909,1770305472698,-500.0,0.00060821,120]
[404573910,1770305472706,-500.0,0.00060821,120]
[404573911,1770305472716,-757.11,0.00060821,120]
[404573912,1770305472725,-1211.68,0.00060821,2]
[404573913,1770305472735,-958.98,0.00060821,120]
[404573914,1770305472744,-686.83,0.00060821,120]
[404573915,1770305472754,-180.21275752,0.00060821,120]
[404573916,1770305472764,-319.55,0.00060821,120]
[404573917,1770305472774,-500.0,0.00060821,120]
[404573918,1770305472868,-899.28,0.00060821,120]
[404573919,1770305472879,-1370.64,0.00060821,120]
[404573920,1770305472890,-500.0,0.00060821,120]
[404573921,1770305472898,-658.98,0.00060821,14]
[404573922,1770305472907,-2352.07,0.00060821,30]
[404573923,1770305472917,-65810.86,0.00060821,14]
[404573924,1770305472928,-1568.85,0.00060821,120]
[404573925,1770305472937,-4399.7,0.00060821,21]
[404573926,1770305472947,-500.0,0.00060821,54]
[404573927,1770305472958,-724.89,0.00060821,120]
[404573928,1770305472968,-1207.7,0.00060821,120]
[404573929,1770305472978,-1537.54,0.00060821,120]
[404573930,1770305472988,-1689.93,0.00060821,120]
[404573931,1770305472997,-547.47,0.00060821,120]
[404573932,1770305473008,-773.92,0.00060821,120]
[404573933,1770305473018,-1484.47,0.00060821,120]
[404573934,1770305473028,-2746.19,0.00060821,90]
[404573935,1770305473037,-500.0,0.00060821,120]
[404573936,1770305473048,-500.0,0.00060821,120]
[404573937,1770305473058,-247.381,0.00061073,120]
[404573938,1770305473067,-233.125,0.00061073,120]
[404573939,1770305473076,-268.359,0.00061073,120]
[404573940,1770305473090,-7486.37070845,0.00061088,2]
[404573941,1770305473190,-6672.75330705,0.00061088,2]
[404573942,1770305473200,-154.26,0.00061095,120]
[404573943,1770305473210,-1470.32726045,0.0006118,30]
[404573944,1770305473220,-500.0,0.00061369,120]
[404573945,1770305473229,-500.0,0.00061369,120]
[404573946,1770305473240,-500.0,0.00061369,120]
[404573947,1770305473249,-500.0,0.00061369,120]
[404573948,1770305473262,-1007.5,0.00061369,30]
[404573949,1770305473272,-2025.68,0.00061369,120]
[404573950,1770305473281,-739.64,0.00061369,120]
[404573951,1770305473291,-891.32,0.00061369,7]
[404573952,1770305473302,-551.9,0.00061369,120]
[404573953,1770305473312,-754.99,0.00061369,120]
[404573954,1770305473322,-2072.5,0.00061369,120]
[404573955,1770305473337,-7798.25,0.00061369,120]
[404573956,1770305473347,-7798.25,0.00061369,120]
[404573957,1770305473357,-2202.72,0.00061369,120]
[404573958,1770305473367,-500.0,0.00061369,120]
[404573959,1770305473376,-2952.51,0.00061369,120]
[404573960,1770305473386,-843.92,0.00061369,120]
[404573961,1770305473396,-1650.61,0.00061369,120]
[404573962,1770305473406,-795.87,0.00061369,120]
[404573963,1770305473415,-709.18,0.00061369,120]
[404573964,1770305473424,-500.0,0.00061369,120]
[404573965,1770305473433,-500.0,0.00061369,120]
[404573966,1770305473443,-500.0,0.00061369,120]
[404573967,1770305473453,-500.08199305,0.00061369,120]
[404573968,1770305473462,-860.2,0.00061369,120]
[404573969,1770305473472,-534.75,0.00061369,120]
[404573970,1770305473482,-500.0,0.00061369,120]
[404573971,1770305473492,-757.11,0.00061369,120]
[404573972,1770305473501,-1211.68,0.00061369,2]
[404573973,1770305473511,-958.98,0.00061369,120]
[404573974,1770305473521,-686.83,0.00061369,120]
[404573975,1770305473531,-319.55,0.00061369,120]
[404573976,1770305473541,-500.0,0.00061369,120]
[404573977,1770305473550,-899.28,0.00061369,120]
[404573978,1770305473560,-1370.64,0.00061369,120]
[404573979,1770305473568,-500.0,0.00061369,120]
[404573980,1770305473578,-658.98,0.00061369,14]
[404573981,1770305473598,-2352.07,0.00061369,30]
[404573982,1770305473608,-28774.09131586,0.00061369,14]
[404573983,1770305473713,-250.0,0.00038973,3]
[404573984,1770305473723,-250.0,0.00038973,3]
[404573985,1770305473734,-250.0,0.00038973,3]
[404573986,1770305473744,-155.13283682,0.00038984,14]
[404573987,1770305473754,-151.000096,0.00039822,120]
[404573988,1770305473764,-540.99,0.00040993,120]
[404573989,1770305473774,-540.99,0.00043386,120]
[404573990,1770305473784,-60.36127518,0.00061369,14]
[404573991,1770305473795,-470.42782395,0.00061369,14]
[404573992,1770305473807,-1988.84297808,0.00061369,14]
[404573993,1770305474184,-5563.36588742,0.00061369,14]
[404573994,1770305474196,-2881.50761692,0.00061369,14]
[404573995,1770305474208,-26072.26310259,0.00061369,14]
[404573996,1770305474218,-1568.85,0.00061369,120]
[404573997,1770305474228,-4399.7,0.00061369,21]
[404573998,1770305474239,-527.57125966,0.00061369,54]
[404573999,1770305474250,-724.89,0.00061369,120]
[404574000,1770305474260,-1207.7,0.00061369,120]
[404574001,1770305474270,-175.27108808,0.00061369,120]
[404574002,1770305474748,-487.0,0.00024811,2]
[404574003,1770305474758,-487.0,0.00024811,2]
[404574004,1770305474768,-487.0,0.00024811,2]
[404574005,1770305474778,-588.27399867,0.00024811,2]
[404574006,1770305474791,-292.36600133,0.00024811,2]
[404574007,1770305474800,-655.98508294,0.00030137,15]
[404574008,1770305474821,-844.01491706,0.00030137,15]
[404574009,1770305474831,-145.30122891,0.00030789,2]
[404574010,1770305474853,-4854.69877109,0.00030789,2]
[404574011,1770305474862,-1774.76,0.0003299,3]
[404574012,1770305474872,-741.26793723,0.00033372,2]
[404574013,1770305474882,-3549.52,0.0003436,3]
[404574014,1770305474891,-250.0,0.00038973,3]
[404574015,1770305474902,-250.0,0.00038973,3]
[404574016,1770305474911,-250.0,0.00038973,3]
[404574017,1770305474921,-250.0,0.00038973,3]
[404574018,1770305474930,-250.0,0.00038973,3]
[404574019,1770305474940,-1110.601168,0.00039822,120]
[404574020,1770305474949,-1006.55361121,0.00039822,120]
[404574021,1770305474965,-104.04755679,0.00039822,120]
[404574022,1770305474975,-1110.601168,0.00039822,120]
[404574023,1770305474985,-178.09,0.0004,30]
[404574024,1770305474995,-231.8,0.0004,30]
[404574025,1770305475005,-741.26793723,0.0004,7]
[404574026,1770305475015,-58.27761541,0.00040822,2]
[404574027,1770305475051,-1500.0,0.00030137,15]
[404574028,1770305475061,-1215.80071439,0.00040822,2]
[404574029,1770305475072,-225.9216702,0.00040822,2]
[404574030,1770305475080,-1378.21771627,0.00040822,2]
[404574031,1770305475118,500.0,0.00013269,2]
[404574032,1770305475149,206.47960674,0.00013269,2]
[404574033,1770305475409,-500.0,0.00015952,2]
[404574034,1770305475419,-500.0,0.00030136,2]
[404574035,1770305475429,-338.42,0.00038984,2]
[404574036,1770305475438,-384.5117464,0.00039822,7]
[404574037,1770305475447,-905.80444,0.00039822,120]
[404574038,1770305475456,-315.11908241,0.00039999,31]
[404574039,1770305475465,-121.78228373,0.00040822,2]
[404574040,1770305475474,-1500.0,0.00040822,2]
[404574041,1770305475483,-1500.0,0.00040822,2]
[404574042,1770305475492,-1500.0,0.00040822,2]
[404574043,1770305475501,-8.05791625,0.00040822,2]
[404574044,1770305475511,-909.3000481,0.00040822,2]
[404574045,1770305475523,-582.64203565,0.00040822,2]
[404574046,1770305475532,-378.07440469,0.00040822,2]
[404574047,1770305475542,-1121.92559531,0.00040822,2]
[404574048,1770305475551,-1500.0,0.00040822,2]
[404574049,1770305475560,-1500.0,0.00040822,2]
[404574050,1770305475569,-1500.0,0.00040822,2]
[404574051,1770305475578,-1377.86486986,0.00040822,2]
[404574052,1770305475594,-122.13513014,0.00040822,2]
[404574053,1770305475603,-1500.0,0.00040822,2]
[404574054,1770305475612,-1500.0,0.00040822,2]
[404574055,1770305475620,-1500.0,0.00040822,2]
[404574056,1770305475629,-1500.0,0.00040822,2]
[404574057,1770305475638,-1500.0,0.00040822,2]
[404574058,1770305475647,-605.0,0.00040822,2]
[404574059,1770305475656,-178.09,0.00042,30]
[404574060,1770305475666,-540.99,0.00045779,120]
[404574061,1770305475676,-540.99,0.00048172,120]
[404574062,1770305475685,-540.99,0.00050566,120]
[404574063,1770305475694,-540.99,0.00052959,120]
[404574064,1770305475703,-1110.601168,0.00055342,120]
[404574065,1770305475712,-1110.601168,0.00055342,120]
[404574066,1770305475721,-1110.601168,0.00055342,120]
[404574067,1770305475730,-49.01136544,0.00055342,120]
[404574068,1770305475741,-856.79307456,0.00055342,120]
[404574069,1770305475750,-1362.26891192,0.00061369,120]
[404574070,1770305475759,-56.31016002,0.00061369,120]
[404574071,1770305475771,-1633.61983998,0.00061369,120]
[404574072,1770305475780,-125.74019618,0.00061369,120]
[404574073,1770305475992,500.0,0.00013269,2]
[404574074,1770305476108,500.0,0.00013269,2]
[404574075,1770305476137,500.0,0.00013269,2]
[404574076,1770305476167,211.09883396,0.00013269,2]
[404574077,1770305489075,500.0,0.00030136,120]
[404574078,1770305532031,208.08058082,0.00013,2]
[404574079,1770305554387,500.0,0.00030136,120]
[404574080,1770305554580,500.0,0.00030136,120]
[404574081,1770305554813,500.0,0.00030136,120]
[404574082,1770305646238,5000.0,0.00013012,2]
[404574084,1770305654271,1011.53578566,0.00013012,2]
[404574085,1770305669087,483.9899333,0.00013012,2]
[404574086,1770305684665,2061.04856937,0.00013012,2]
[404574087,1770305727906,-176.22373169,0.00013266,2]
[404574088,1770305730558,-123.77626831,0.00013266,2]
[404574089,1770305730583,-27.28,0.00013266,2]
[404574090,1770305771963,887.38,0.00012329,2]
[404574091,1770305782420,739.48,0.00012329,2]
[404574092,1770305794191,616.24,0.00012329,2]
[404574093,1770305795740,1488.5959002,0.00012424,2]
[404574094,1770305810272,10000.0,0.00030137,120]
[404574095,1770305817941,3905.41764,0.00012313,2]
[404574096,1770305827646,10000.0,0.00030137,120]
[404574097,1770305843283,10000.0,0.00030137,120]
[404574098,1770305860627,10000.0,0.00030137,120]
[404574099,1770305879106,10000.0,0.00030137,120]
[404574100,1770305881233,277.26,9.99e-05,2]
[404574101,1770305881559,277.26,9.99e-05,2]
[404574102,1770305881858,277.26,9.99e-05,2]
[404574103,1770305906653,8050.0,0.00030137,120]
[404574104,1770305992671,870.9000236,0.00012873,2]
[404574106,1770306159206,4000.0,0.00012265,2]
[404574107,1770306367919,513.53,0.00012329,2]
[404574108,1770306378556,427.94,0.00012329,2]
[404574109,1770306388977,356.62,0.00012329,2]
[404574113,1770306410391,891.58,0.00012329,2]
[404574323,1770306633801,-4133.36351577,0.00013172,2]
[404574324,1770306633810,-607.0,0.00013172,2]
[404574325,1770306633820,-300.0,0.00013261,2]
[404574326,1770306633829,-300.0,0.00013261,2]
[404574327,1770306633839,-300.0,0.00013261,2]
[404574328,1770306633850,-300.0,0.00013261,2]
[404574329,1770306633859,-300.0,0.00013261,2]
[404574330,1770306633869,-1200.0,0.00013261,2]
[404574331,1770306633879,-150.0,0.00013262,2]
[404574332,1770306633889,-500.0,0.00013272,2]
[404574333,1770306633899,-8699.38648423,0.00013272,2]
[404574334,1770306633911,-334.45923056,0.00013272,2]
[404574335,1770306633923,-6677.841161,0.00013272,2]
[404574336,1770306633935,-8236.16106799,0.00013272,2]
[404574337,1770306633945,-500.0,0.00013273,2]
[404574338,1770306633955,-500.0,0.00013273,2]
[404574339,1770306633965,-500.0,0.00013273,2]
[404574340,1770306633975,-500.0,0.00013273,2]
[404574341,1770306633988,-500.0,0.00013273,2]
[404574342,1770306633998,-500.0,0.00013273,2]
[404574343,1770306634008,-500.0,0.00013273,2]
[404574344,1770306634018,-221.60613705,0.00013273,2]
[404574345,1770306634028,-361.13333414,0.00013273,2]
[404574346,1770306634038,-500.0,0.00013273,2]
[404574347,1770306634049,-500.0,0.00013273,2]
[404574348,1770306634058,-500.0,0.00013273,2]
[404574349,1770306634069,-500.0,0.00013273,2]
[404574350,1770306634079,-3248.24777274,0.00013399,2]
[404574351,1770306634089,-500.0,0.00013545,2]
[404574352,1770306634099,-1606.865445,0.00013579,2]
[404574353,1770306634109,-562.83289727,0.00013599,2]
[404574354,1770306634118,-151.05626831,0.00013673,2]
[404574355,1770306634128,-500.0,0.00013698,2]
[404574356,1770306634138,-461.65944239,0.00013698,2]
[404574357,1770306634147,-500.0,0.00013698,2]
[404574358,1770306634157,-500.0,0.00013698,2]
[404574359,1770306634167,-500.0,0.00013698,2]
[404574360,1770306634176,-706.505041,0.00013699,2]
[404574361,1770306634186,-501.06734588,0.00013699,2]
[404574362,1770306634196,-500.0,0.00013699,2]
[404574363,1770306634205,-345.32992802,0.00013699,2]
[404574364,1770306634214,-467.88156218,0.00013699,2]
[404574365,1770306634224,-210.43385801,0.0001372,2]
[404574366,1770306634238,-334.45923056,0.00013819,2]
[404574367,1770306634247,-940.87186449,0.00013821,2]
[404574368,1770306634257,-1033.31507517,0.00013821,2]
[404574369,1770306634267,-1059.75758401,0.00013821,2]
[404574370,1770306634277,-1000.0,0.00013821,2]
[404574371,1770306634287,-787.00479948,0.00013821,2]
[404574372,1770306634297,-1000.0,0.00013821,2]
[404574373,1770306634307,-1000.0,0.00013821,2]
[404574374,1770306634317,-500.0,0.00013821,2]
[404574375,1770306634327,-1000.0,0.00013821,2]
[404574376,1770306634336,-1000.0,0.00013821,2]
[404574377,1770306634345,-547.15369285,0.00013821,2]
[404574395,1770306639112,-500.0,0.0001327,2]
[404574397,1770306639122,-500.0,0.0001327,2]
[404574399,1770306639132,-11.95412133,0.0001327,2]
[404574401,1770306639145,-488.04587867,0.0001327,2]
[404574403,1770306639154,-500.0,0.0001327,2]
[404574405,1770306639165,-500.0,0.0001327,2]
[404574407,1770306639174,-500.0,0.0001327,2]